bitfinex/quotes_ETHUSD_20250708
["timestamp","ask_amount","ask_price","bid_price","bid_amount"]
[1751987044541,1e-08,2568.7,2568.6,23.00685084]
[1751987045141,1e-08,2568.7,2568.6,11.68085084]
[1751987045344,1e-08,2568.7,2568.6,10.19057137]
[1751987045516,1e-08,2568.7,2568.6,4.08757137]
[1751987045706,1e-08,2568.7,2568.6,10.22950308]
[1751987045902,1e-08,2568.7,2568.6,4.08757137]
[1751987047945,1e-08,2568.7,2568.6,0.1944]
[1751987048644,3.99877137,2568.6,2568.5,0.001]
[1751987048844,5.38971789,2568.6,2568.5,0.001]
[1751987049544,13.02171789,2568.6,2568.5,0.001]
[1751987049743,17.02171789,2568.6,2568.5,0.001]
[1751987050114,9.38971789,2568.6,2568.5,0.001]
[1751987050314,17.02271789,2568.6,2568.5,0.001]
[1751987051845,17.02271789,2568.6,2568.3,1e-08]
[1751987051846,3.89347453,2568.4,2568.3,1e-08]
[1751987052146,27.07726371,2568.4,2568.3,1e-08]
[1751987052318,34.96726371,2568.4,2568.3,1e-08]
[1751987052519,24.80702105,2568.4,2568.3,1e-08]
[1751987052849,25.58733514,2568.4,2568.3,1e-08]
[1751987053049,19.38590981,2568.4,2568.3,1e-08]
[1751987053349,33.81931049,2568.4,2568.3,1e-08]
[1751987054948,37.63324238,2568.4,2568.3,1e-08]
[1751987055666,46.60492485,2568.4,2568.3,1e-08]
[1751987055855,48.91313799,2568.4,2568.3,1e-08]
[1751987057738,46.60492485,2568.4,2568.3,1e-08]
[1751987058770,48.9097268,2568.4,2568.3,1e-08]
[1751987058953,48.90980031,2568.4,2568.3,1e-08]
[1751987059970,48.90585218,2568.4,2568.3,1e-08]
[1751987061089,41.00396168,2568.4,2568.3,1e-08]
[1751987061460,41.53564415,2568.4,2568.3,1e-08]
[1751987061688,44.39051961,2568.4,2568.3,1e-08]
[1751987061990,52.15397672,2568.4,2568.3,1e-08]
[1751987066169,52.15302169,2568.4,2568.3,1e-08]
[1751987066900,52.77581942,2568.4,2568.3,1e-08]
[1751987067100,52.15302169,2568.4,2568.3,1e-08]
[1751987067807,38.42002169,2568.4,2568.3,1e-08]
[1751987067963,46.04902169,2568.4,2568.3,1e-08]
[1751987069680,46.59902169,2568.4,2568.3,1e-08]
[1751987069886,47.07819463,2568.4,2568.3,1e-08]
[1751987070515,49.38307009,2568.4,2568.3,1e-08]
[1751987070723,49.38177621,2568.4,2568.3,1e-08]
[1751987071020,49.38161414,2568.4,2568.3,1e-08]
[1751987071217,39.44932754,2568.4,2568.3,1e-08]
[1751987071417,47.07732754,2568.4,2568.3,1e-08]
[1751987072121,50.52397288,2568.4,2568.3,1e-08]
[1751987073217,42.89597288,2568.4,2568.3,1e-08]
[1751987073443,50.52397288,2568.4,2568.3,1e-08]
[1751987073620,42.34597288,2568.4,2568.3,1e-08]
[1751987073815,45.51647213,2568.4,2568.3,1e-08]
[1751987074221,48.96311747,2568.4,2568.3,1e-08]
[1751987075122,32.2447849,2568.4,2568.3,1e-08]
[1751987075322,34.89913956,2568.4,2568.3,1e-08]
[1751987075827,17.16553956,2568.4,2568.3,1e-08]
[1751987076012,24.79253956,2568.4,2568.3,1e-08]
[1751987076212,34.79253956,2568.4,2568.3,1e-08]
[1751987076921,45.04293217,2568.4,2568.3,1e-08]
[1751987077893,33.96928683,2568.4,2568.3,1e-08]
[1751987078123,45.04293217,2568.4,2568.3,1e-08]
[1751987078516,38.94493217,2568.4,2568.3,1e-08]
[1751987078698,45.04493217,2568.4,2568.3,1e-08]
[1751987078899,41.59828683,2568.4,2568.3,1e-08]
[1751987080223,45.04493217,2568.4,2568.3,1e-08]
[1751987080939,41.59828683,2568.4,2568.3,1e-08]
[1751987081131,45.04493217,2568.4,2568.3,1e-08]
[1751987082068,16.72071037,2568.4,2568.3,0.77470001]
[1751987082341,15.37306503,2568.4,2568.3,0.77470001]
[1751987082541,21.58544902,2568.4,2568.3,0.77470001]
[1751987082730,21.77984902,2568.4,2568.3,0.77470001]
[1751987082914,17.88637449,2568.4,2568.3,0.77470001]
[1751987083114,15.56646503,2568.4,2568.3,0.77470001]
[1751987083423,19.45993956,2568.4,2568.3,0.77470001]
[1751987083810,13.36193956,2568.4,2568.3,0.77470001]
[1751987084042,1.57846503,2568.4,2568.3,0.77470001]
[1751987084247,7.48206503,2568.4,2568.3,0.77470001]
[1751987085809,1.38406503,2568.4,2568.3,0.77470001]
[1751987086012,6.099,2568.4,2568.3,5.15461318]
[1751987086245,7.48106503,2568.4,2568.3,5.34901318]
[1751987086413,1.38406503,2568.4,2568.3,5.34901318]
[1751987086616,7.48106503,2568.4,2568.3,5.34901318]
[1751987087014,1.38406503,2568.4,2568.3,5.34901318]
[1751987087214,0.002,2568.4,2568.3,5.38794944]
[1751987087448,0.002,2568.4,2568.3,5.34901318]
[1751987088719,0.002,2568.4,2568.3,5.38794944]
[1751987089821,0.002,2568.4,2568.3,5.34901318]
[1751987090022,0.002,2568.4,2568.3,5.38794944]
[1751987091930,0.002,2568.4,2568.3,5.34901318]
[1751987092651,0.002,2568.4,2568.3,5.93794944]
[1751987096453,0.002,2568.4,2568.3,5.88012853]
[1751987097558,0.002,2568.4,2568.3,5.84119227]
[1751987098853,0.002,2568.4,2568.3,5.88012853]
[1751987099560,0.002,2568.4,2568.3,5.84119227]
[1751987099929,0.002,2568.4,2568.3,5.84219227]
[1751987100167,0.002,2568.4,2568.3,5.88112853]
[1751987100354,0.002,2568.4,2568.3,5.84219227]
[1751987101268,0.002,2568.4,2568.3,5.88112853]
[1751987103665,1e-08,2568.7,2568.6,5.20717137]
[1751987103864,1e-08,2568.7,2568.6,4.85157137]
[1751987104372,0.002,2569.2,2569.1,4.66671368]
[1751987104672,0.002,2569.2,2569.1,18.10946095]
[1751987105062,0.002,2569.2,2569.1,18.30386095]
[1751987105265,0.002,2569.2,2569.1,20.52350047]
[1751987105440,0.002,2569.2,2569.1,13.7197532]
[1751987105944,0.002,2569.2,2569.1,20.52350047]
[1751987107074,0.002,2569.2,2569.1,7.0807532]
[1751987107245,0.002,2569.2,2569.1,13.1687532]
[1751987108873,0.002,2569.2,2569.1,6.3064532]
[1751987109276,0.002,2569.2,2569.1,4.08681368]
[1751987109677,0.002,2569.2,2569.1,4.12573781]
[1751987112383,0.002,2569.2,2569.1,12.23296095]
[1751987115649,1e-08,2569.2,2569.1,22.23296095]
[1751987119073,1e-08,2569.2,2569.1,28.31596095]
[1751987119392,1e-08,2569.2,2569.1,31.68871173]
[1751987119793,1e-08,2569.2,2569.1,18.25196446]
[1751987119957,1e-08,2569.2,2569.1,20.96121368]
[1751987120560,1e-08,2569.2,2569.1,14.87921368]
[1751987120760,1e-08,2569.2,2569.1,20.96121368]
[1751987121191,1e-08,2569.2,2569.1,14.87921368]
[1751987121373,1e-08,2569.2,2569.1,20.96121368]
[1751987122163,1e-08,2569.2,2569.1,23.44668425]
[1751987122368,1e-08,2569.2,2569.1,10.9868]
[1751987122568,1e-08,2569.2,2569.1,20.96121368]
[1751987123005,1e-08,2569.2,2569.1,10.9868]
[1751987123301,1e-08,2569.2,2569.1,20.96121368]
[1751987123513,1e-08,2569.2,2569.1,10.16881368]
[1751987123794,1e-08,2569.2,2569.1,10.16781368]
[1751987124562,1e-08,2569.2,2569.1,4.08681368]
[1751987124776,1e-08,2569.2,2569.1,10.16781368]
[1751987126586,1e-08,2569.2,2569.1,4.08681368]
[1751987126913,1e-08,2569.2,2569.1,10.16781368]
[1751987127079,1e-08,2569.2,2569.1,4.08681368]
[1751987127285,1e-08,2569.2,2569.1,10.16681368]
[1751987128107,1e-08,2569.2,2569.1,0.1944]
[1751987128287,0.16340001,2569.2,2569.1,0.1944]
[1751987128717,4.05566219,2569.2,2569.1,0.1944]
[1751987129019,3.89241368,2569.1,2569.0,0.001]
[1751987129997,4.46129693,2569.2,2569.0,0.001]
[1751987130616,3.89241368,2569.1,2569.0,0.001]
[1751987131806,5.28157463,2569.1,2569.0,0.001]
[1751987132008,6.95566972,2569.1,2569.0,0.001]
[1751987132207,14.11721699,2569.1,2569.0,0.001]
[1751987133430,18.11721699,2569.1,2569.0,0.001]
[1751987133638,14.11721699,2569.1,2569.0,0.001]
[1751987134134,13.39246972,2569.1,2569.0,0.001]
[1751987134635,13.39206035,2569.1,2569.0,0.001]
[1751987135636,3.42064667,2569.1,2569.0,0.001]
[1751987135824,11.71796526,2569.1,2569.0,0.001]
[1751987137536,1.58315158,2569.1,2569.0,0.001]
[1751987138340,9.97135736,2569.2,2569.0,0.001]
[1751987138341,6.07800001,2569.2,2569.0,0.001]
[1751987138642,9.97026983,2569.2,2569.0,0.001]
[1751987139136,1e-08,2569.2,2569.1,3.89241368]
[1751987139337,1e-08,2569.2,2569.0,4.08788216]
[1751987139523,1e-08,2569.2,2569.0,4.0879483]
[1751987139938,1e-08,2569.2,2569.1,3.89241368]
[1751987141429,1e-08,2569.2,2569.1,4.81194401]
[1751987141634,1e-08,2569.2,2569.1,5.00634401]
[1751987142215,1e-08,2569.2,2569.1,16.38264401]
[1751987142517,1e-08,2569.2,2569.1,16.34371988]
[1751987146283,1e-08,2569.5,2569.4,21.47250648]
[1751987146425,1e-08,2569.5,2569.4,32.91139896]
[1751987146621,1e-08,2569.8,2569.7,5.21830484]
[1751987146827,1e-08,2569.8,2569.7,18.13596715]
[1751987147125,1e-08,2569.8,2569.7,18.29145211]
[1751987147351,1e-08,2569.8,2569.7,21.50976059]
[1751987147861,1e-08,2569.8,2569.7,31.50976059]
[1751987148052,0.002,2570.1,2570.0,14.44105058]
[1751987148053,1e-08,2570.1,2570.0,14.44105058]
[1751987148381,1.38916155,2570.8,2570.7,3.88999105]
[1751987148661,0.002,2570.8,2570.7,10.15839105]
[1751987150675,0.002,2570.8,2570.7,9.96399105]
[1751987151057,0.002,2570.8,2570.7,21.31319105]
[1751987151238,0.002,2570.8,2570.7,25.04366763]
[1751987151958,0.002,2570.8,2570.7,26.55566763]
[1751987153346,0.002,2570.8,2570.7,18.96966763]
[1751987153545,0.002,2570.8,2570.7,26.55466763]
[1751987153762,0.002,2570.8,2570.7,18.96966763]
[1751987153942,0.002,2570.8,2570.7,26.55466763]
[1751987154645,0.002,2570.8,2570.7,26.00366763]
[1751987156555,0.002,2570.8,2570.7,18.41966763]
[1751987156767,0.002,2570.8,2570.7,22.27219105]
[1751987156962,0.002,2570.8,2570.7,14.68919105]
[1751987157383,0.002,2570.8,2570.7,3.88999105]
[1751987157587,0.002,2570.8,2570.7,9.95899105]
[1751987157754,0.002,2570.8,2570.3,0.8077]
[1751987158082,0.002,2570.8,2570.6,3.89006191]
[1751987158253,0.002,2570.8,2570.7,6.068]
[1751987158656,0.002,2570.8,2570.7,9.95799105]
[1751987159558,0.002,2570.8,2570.7,6.068]
[1751987159981,0.002,2570.8,2570.6,3.89013308]
[1751987160181,0.002,2570.8,2570.7,9.95799105]
[1751987160366,0.002,2570.8,2570.7,6.068]
[1751987160688,0.002,2570.8,2570.7,10.15239105]
[1751987162061,0.002,2570.8,2570.7,6.2614]
[1751987163797,0.002,2570.8,2570.7,10.15139105]
[1751987163966,0.002,2570.8,2570.7,6.2614]
[1751987164293,0.002,2570.8,2570.7,10.15139105]
[1751987164696,0.002,2570.8,2570.7,6.2604]
[1751987164881,0.002,2570.8,2570.7,10.15039105]
[1751987166402,0.002,2570.8,2570.7,6.2604]
[1751987166771,0.002,2570.8,2570.7,10.15039105]
[1751987168416,0.002,2570.8,2570.7,11.55444367]
[1751987168593,0.002,2570.8,2570.7,12.35334367]
[1751987170691,0.002,2570.8,2570.7,6.28734367]
[1751987170897,0.002,2570.8,2570.7,13.86534367]
[1751987172323,0.002,2570.8,2570.7,11.55244367]
[1751987172501,0.002,2570.8,2570.7,3.88999105]
[1751987172705,0.002,2570.8,2570.7,9.95399105]
[1751987172888,0.002,2570.8,2570.6,0.1944]
[1751987173094,0.002,2570.8,2570.7,6.064]
[1751987175033,0.002,2570.8,2570.4,4.08474166]
[1751987175034,0.1634,2570.7,2570.4,4.08474166]
[1751987175194,0.002,2570.8,2570.6,3.89014237]
[1751987175512,0.002,2570.8,2570.7,6.063]
[1751987176824,5.28269028,2570.8,2570.7,6.063]
[1751987177127,1.39285055,2570.8,2570.7,6.063]
[1751987178502,1.39285055,2570.8,2570.5,3.89028351]
[1751987178835,1.39285055,2570.8,2570.6,6.063]
[1751987179597,0.002,2570.8,2570.6,6.063]
[1751987179999,1.3949166,2570.8,2570.6,6.063]
[1751987180202,1.3949166,2570.8,2570.7,6.062]
[1751987181333,2.34794474,2570.8,2570.4,0.1944]
[1751987181635,0.1944,2570.6,2570.3,9.95158239]
[1751987181932,1.587149,2570.6,2570.3,6.061]
[1751987182133,5.47731035,2570.6,2570.3,6.061]
[1751987182337,4.0538138,2570.5,2570.2,0.1944]
[1751987182638,4.0538138,2570.5,2569.9,4.71587641]
[1751987182639,5.90257894,2570.4,2569.9,4.08550741]
[1751987182944,4.50973849,2570.4,2569.9,4.08550741]
[1751987183135,3.89095139,2570.1,2569.8,1.51]
[1751987183332,0.1634,2570.1,2569.8,1.7044]
[1751987183638,0.1634,2570.1,2569.8,7.7654]
[1751987184007,0.1634,2570.1,2569.8,11.65667043]
[1751987184407,0.1634,2570.1,2569.8,13.21148289]
[1751987184608,0.1634,2570.1,2569.8,1.7044]
[1751987184840,0.1634,2570.1,2569.9,6.062]
[1751987185547,3.89111673,2570.0,2569.5,3.89172376]
[1751987185750,4.24878527,2570.1,2569.6,10.14697696]
[1751987186851,4.24878527,2570.1,2569.7,6.061]
[1751987187053,4.24878527,2570.1,2569.7,9.95249693]
[1751987187254,0.3578,2570.1,2569.7,9.95249693]
[1751987188456,4.24870458,2570.1,2569.7,9.95249693]
[1751987188657,0.3578,2570.1,2569.6,0.1944]
[1751987188858,0.1944,2569.9,2569.7,6.061]
[1751987189030,4.08567321,2569.9,2569.7,6.061]
[1751987189554,0.1944,2569.9,2569.5,0.001]
[1751987189753,0.1634,2569.8,2569.6,6.06]
[1751987190854,0.1634,2569.8,2569.5,3.8928075]
[1751987191160,3.8916335,2569.7,2569.5,0.001]
[1751987191468,1.27838369,2569.7,2569.5,0.001]
[1751987191672,0.1944,2569.7,2569.5,0.001]
[1751987192271,0.1944,2569.7,2569.5,3.89277248]
[1751987192783,0.1634,2570.1,2569.6,6.09891656]
[1751987193076,0.3578,2570.1,2569.9,3.89111316]
[1751987193277,1.55108186,2570.3,2570.0,3.89105058]
[1751987193477,0.1634,2570.3,2570.0,3.89105058]
[1751987193644,0.1634,2570.3,2569.9,10.14553454]
[1751987193968,0.1634,2570.3,2570.0,3.89096554]
[1751987195646,0.1634,2570.3,2570.0,3.8910423]
[1751987196686,0.1634,2570.3,2570.1,3.89089013]
[1751987196976,0.1634,2570.2,2569.9,0.1944]
[1751987197180,0.1634,2570.2,2569.6,3.89158737]
[1751987197181,0.1944,2570.0,2569.6,3.89158737]
[1751987197880,4.08545266,2570.0,2569.6,3.89158737]
[1751987198084,0.1944,2570.0,2569.6,3.89158737]
[1751987198650,4.08548233,2570.0,2569.5,10.14612758]
[1751987199061,0.1944,2570.0,2569.6,3.89163598]
[1751987199280,0.1944,2570.0,2569.5,0.1954]
[1751987199581,3.89127262,2569.9,2569.6,6.059]
[1751987199882,0.1944,2570.0,2569.6,9.95061228]
[1751987200181,4.08552339,2570.0,2569.6,6.059]
[1751987200681,4.08552339,2570.0,2569.6,9.95064889]
[1751987200880,0.1944,2570.0,2569.6,9.95064889]
[1751987201286,4.08545559,2570.0,2569.6,9.95064889]
[1751987201784,4.08545559,2570.0,2569.6,6.059]
[1751987202585,0.1634,2569.8,2569.5,0.1954]
[1751987202768,0.3578,2569.8,2569.6,6.058]
[1751987202962,0.3578,2569.8,2569.5,0.001]
[1751987203383,4.24916601,2569.8,2569.5,0.001]
[1751987203586,0.3578,2569.8,2569.5,0.001]
[1751987203786,0.3578,2569.8,2569.5,3.89280003]
[1751987205285,4.05441646,2570.1,2569.6,3.89156856]
[1751987205464,4.08548891,2570.0,2569.6,3.89156856]
[1751987205787,0.1944,2570.0,2569.6,3.89156856]
[1751987205984,0.1944,2570.0,2569.7,3.89146184]
[1751987206190,0.1944,2570.0,2569.9,3.89120199]
[1751987206394,0.1944,2570.2,2569.7,0.1944]
[1751987206618,1.55254294,2570.4,2570.2,3.8907406]
[1751987206897,5.38914294,2570.3,2570.0,0.1944]
[1751987207072,1.38914294,2570.2,2570.1,3.89082515]
[1751987207654,1.55254294,2570.4,2570.1,3.89082515]
[1751987207886,1.38914294,2570.3,2570.1,3.89082515]
[1751987208085,1.38914294,2570.2,2570.1,3.89082515]
[1751987208487,0.1634,2570.4,2570.0,4.08536596]
[1751987208791,1.55254294,2570.4,2570.1,3.8908751]
[1751987208995,1.38914294,2570.3,2570.1,3.8908751]
[1751987209202,0.1634,2570.4,2570.2,3.8907478]
[1751987209360,0.002,2570.3,2570.2,3.8907478]
[1751987210073,0.002,2570.3,2570.2,4.76760939]
[1751987210266,1.39240958,2570.3,2570.2,4.96200939]
[1751987210766,0.002,2570.3,2570.2,4.96200939]
[1751987212468,1.39240958,2570.3,2570.2,4.96200939]
[1751987212669,0.002,2570.3,2570.2,4.96200939]
[1751987213291,1.39240958,2570.3,2570.2,4.96200939]
[1751987213505,0.002,2570.3,2570.2,4.96200939]
[1751987214372,0.002,2570.3,2570.2,0.1944]
[1751987214574,0.1654,2570.3,2570.1,6.055]
[1751987214891,0.1654,2570.3,2570.1,9.94589235]
[1751987215188,0.1654,2570.3,2570.1,3.89089235]
[1751987215385,0.1654,2570.3,2570.1,9.94589235]
[1751987215579,0.002,2570.3,2570.1,9.94589235]
[1751987216232,0.002,2570.3,2570.2,3.8907478]
[1751987217106,0.002,2570.3,2570.2,6.04405156]
[1751987217270,0.002,2570.8,2570.3,0.7502]
[1751987217491,5.7444089,2571.8,2570.3,0.7502]
[1751987217492,0.002,2571.9,2571.8,3.88832724]
[1751987217690,4.002,2571.9,2571.8,12.109]
[1751987218402,0.002,2571.9,2571.8,12.109]
[1751987218904,0.002,2571.9,2571.8,15.99732724]
[1751987219102,0.002,2571.9,2571.8,16.78412724]
[1751987220603,0.002,2571.9,2571.8,12.8958]
[1751987220802,0.002,2571.9,2571.8,12.109]
[1751987222098,0.002,2571.9,2571.8,6.052]
[1751987222521,0.002,2571.9,2571.8,9.94032724]
[1751987222829,0.002,2571.9,2571.8,12.3610467]
[1751987224105,0.0707911,2572.0,2571.9,4.43817605]
[1751987224313,0.0707911,2572.0,2571.9,15.23325781]
[1751987224505,0.0707911,2572.0,2571.9,15.19437605]
[1751987229851,0.0707911,2572.0,2571.9,22.74937605]
[1751987230056,0.0707911,2572.0,2571.9,18.43589395]
[1751987230363,0.0707911,2572.0,2571.9,25.99089395]
[1751987230749,0.0707911,2572.0,2571.9,17.88589395]
[1751987230960,0.0707911,2572.0,2571.9,13.2415179]
[1751987231131,0.0707911,2572.0,2571.9,10.0]
[1751987231472,0.0727911,2572.0,2571.9,16.049]
[1751987232347,0.0727911,2572.0,2571.8,0.1944]
[1751987232545,4.05157605,2571.9,2571.8,0.1944]
[1751987232749,4.05164688,2571.9,2571.8,6.048]
[1751987233056,0.1634,2571.9,2571.7,6.048]
[1751987233251,0.1634,2571.9,2571.8,6.048]
[1751987233647,4.05157605,2571.9,2571.8,6.048]
[1751987233959,4.05157605,2571.9,2571.5,0.1944]
[1751987234335,4.05157605,2571.9,2571.6,6.048]
[1751987234839,0.1634,2571.9,2571.6,6.048]
[1751987235262,4.05158349,2571.9,2571.6,6.048]
[1751987235680,0.1634,2571.9,2571.6,6.048]
[1751987236882,0.1634,2571.9,2571.6,9.93662492]
[1751987237092,0.1634,2571.9,2571.6,6.048]
[1751987237378,0.2671911,2572.0,2571.7,3.88840025]
[1751987237577,0.0727911,2572.0,2571.9,0.1944]
[1751987239656,3.96081598,2572.0,2571.9,0.1944]
[1751987239858,3.88824712,2571.9,2571.7,0.1944]
[1751987240076,3.88818756,2571.9,2571.7,0.1944]
[1751987240887,3.96088543,2572.0,2571.7,0.1944]
[1751987241683,4.05167958,2571.9,2571.7,0.1944]
[1751987241882,3.88832724,2571.8,2571.7,0.1944]
[1751987242065,3.88849907,2571.7,2571.4,6.046]
[1751987242268,3.88849907,2571.7,2571.5,0.1944]
[1751987243000,3.88841328,2571.8,2571.5,0.1944]
[1751987243201,3.88848652,2571.7,2571.5,0.1944]
[1751987243980,4.05164306,2571.9,2571.5,0.1944]
[1751987244287,3.88862964,2571.6,2571.5,0.1944]
[1751987244461,4.08299002,2571.7,2571.2,10.1296128]
[1751987244665,3.88863721,2571.6,2571.2,10.1296128]
[1751987244901,3.88863721,2571.6,2571.2,6.2404]
[1751987245703,3.88887105,2571.5,2571.2,0.1944]
[1751987245902,0.1634,2571.6,2571.1,6.047]
[1751987246198,3.88901208,2571.4,2571.1,0.1954]
[1751987246568,3.88915104,2571.3,2571.1,0.1954]
[1751987246771,3.88915104,2571.3,2571.1,0.001]
[1751987246772,4.05263459,2571.2,2571.1,0.001]
[1751987246992,4.24703459,2571.2,2571.1,0.001]
[1751987248899,5.06065315,2571.2,2571.1,0.001]
[1751987249108,11.10665315,2571.2,2571.1,0.001]
[1751987250688,18.65565315,2571.2,2571.1,0.001]
[1751987252289,28.65565315,2571.2,2571.1,0.001]
[1751987254773,40.54565315,2571.2,2571.1,0.001]
[1751987255101,14.60278586,2571.1,2571.0,1e-08]
[1751987255301,34.40798726,2571.1,2571.0,1e-08]
[1751987255706,38.40798726,2571.1,2571.0,1e-08]
[1751987256589,38.60267669,2571.1,2571.0,1e-08]
[1751987257776,27.27896503,2571.1,2571.0,1e-08]
[1751987257984,28.78296503,2571.1,2571.0,1e-08]
[1751987258605,39.36198726,2571.1,2571.0,1e-08]
[1751987259206,39.91198726,2571.1,2571.0,1e-08]
[1751987262584,39.37096503,2571.1,2571.0,1e-08]
[1751987262786,40.87296503,2571.1,2571.0,1e-08]
[1751987265707,17.27896503,2571.1,2571.0,1e-08]
[1751987265898,21.82438586,2571.1,2571.0,1e-08]
[1751987266224,31.82438586,2571.1,2571.0,1e-08]
[1751987268305,27.82438586,2571.1,2571.0,1e-08]
[1751987269427,27.98778586,2571.1,2571.0,1e-08]
[1751987269630,31.98778586,2571.1,2571.0,1e-08]
[1751987271512,32.53778586,2571.1,2571.0,1e-08]
[1751987273521,28.53778586,2571.1,2571.0,1e-08]
[1751987275907,35.98550059,2571.1,2571.0,1e-08]
[1751987276805,40.08450059,2571.1,2571.0,1e-08]
[1751987277141,35.98550059,2571.1,2571.0,1e-08]
[1751987278420,32.53778586,2571.1,2571.0,1e-08]
[1751987280655,3.8907478,2570.2,2570.1,0.001]
[1751987280856,38.40277002,2570.2,2570.1,0.001]
[1751987281660,30.51277003,2570.2,2570.1,0.001]
[1751987282237,19.9337478,2570.2,2570.1,0.001]
[1751987282837,3.89052558,2570.4,2570.1,0.001]
[1751987283043,3.89037796,2570.5,2570.2,0.7767]
[1751987283359,0.1944,2570.3,2570.2,0.7767]
[1751987283728,6.2374,2570.3,2570.2,0.7767]
[1751987285773,0.1944,2570.3,2570.2,0.7767]
[1751987285976,0.1944,2570.8,2570.6,0.8295]
[1751987286144,6.2364,2570.8,2570.6,0.8295]
[1751987287136,0.1944,2570.8,2570.6,0.8295]
[1751987287347,6.2364,2570.8,2570.6,0.8295]
[1751987287547,3.88929397,2571.2,2570.6,0.49142764]
[1751987287745,10.12583593,2571.1,2570.7,0.8295]
[1751987288257,6.042,2571.0,2570.8,0.8183]
[1751987288857,6.042,2571.0,2570.8,3.8897692]
[1751987289046,6.042,2571.0,2570.9,0.8183]
[1751987289363,6.042,2571.1,2570.9,0.8183]
[1751987289752,6.041,2571.1,2570.9,0.8183]
[1751987292286,6.041,2571.1,2570.9,4.70796842]
[1751987292446,0.1944,2571.2,2570.9,5.58719839]
[1751987292647,6.2354,2571.2,2570.9,5.58719839]
[1751987292847,0.1944,2571.2,2570.9,5.58719839]
[1751987293048,15.39072803,2571.6,2571.2,0.7939]
[1751987293286,6.04,2571.4,2571.2,0.7939]
[1751987293659,9.92894142,2571.4,2571.2,0.7939]
[1751987293863,6.04,2571.4,2571.2,0.7939]
[1751987294186,9.92894096,2571.4,2571.2,0.7939]
[1751987294397,3.88894096,2571.4,2571.2,0.7939]
[1751987294693,6.04,2571.4,2571.2,0.7939]
[1751987295056,6.04,2571.5,2571.3,0.7826]
[1751987295264,6.04,2571.5,2571.3,0.977]
[1751987295857,9.92878831,2571.5,2571.3,0.977]
[1751987296362,6.04,2571.5,2571.3,0.977]
[1751987297149,9.92881167,2571.5,2571.3,0.977]
[1751987297645,9.93081167,2571.5,2571.3,0.977]
[1751987297854,3.88893209,2571.4,2571.3,0.7826]
[1751987298288,9.93086456,2571.5,2571.3,0.7826]
[1751987298465,3.88893209,2571.4,2571.3,0.7826]
[1751987298793,3.88893209,2571.4,2571.1,0.9795]
[1751987298794,3.88912999,2571.3,2571.1,0.9795]
[1751987299580,9.9272025,2571.3,2571.1,0.9795]
[1751987299899,3.88938586,2571.1,2571.0,0.001]
[1751987300101,10.12178586,2571.1,2571.0,0.001]
[1751987301276,10.12178586,2571.1,2571.0,0.7842]
[1751987302547,6.2324,2571.1,2571.0,0.7842]
[1751987303066,0.1944,2571.1,2571.0,0.7842]
[1751987303276,6.2314,2571.1,2571.0,0.7842]
[1751987303594,10.12078586,2571.1,2571.0,0.7842]
[1751987303966,10.12078586,2571.1,2571.0,0.001]
[1751987304281,11.52179086,2571.1,2571.0,0.001]
[1751987306404,10.12078586,2571.1,2571.0,0.001]
[1751987312998,6.2314,2571.1,2571.0,0.001]
[1751987313198,0.1944,2571.1,2571.0,0.7606]
[1751987313380,10.11878586,2571.1,2571.0,0.7606]
[1751987313585,10.11878586,2571.1,2571.0,0.001]
[1751987313784,11.51958803,2571.1,2571.0,0.001]
[1751987314515,6.2294,2571.1,2571.0,0.001]
[1751987314680,6.2294,2571.1,2571.0,0.8142]
[1751987315199,10.11878586,2571.1,2571.0,0.8142]
[1751987315380,0.1944,2571.1,2571.0,0.8142]
[1751987315585,6.2294,2571.1,2571.0,0.8142]
[1751987317504,10.11878586,2571.1,2571.0,0.8142]
[1751987318014,6.2294,2571.1,2571.0,0.8142]
[1751987318828,10.11878586,2571.1,2571.0,0.8142]
[1751987319313,6.2294,2571.1,2571.0,0.8142]
[1751987319491,10.11878586,2571.1,2571.0,0.8142]
[1751987320891,10.11878586,2571.1,2571.0,0.001]
[1751987321437,10.12078586,2571.1,2571.0,0.001]
[1751987321797,11.5217898,2571.1,2571.0,0.001]
[1751987323722,21.5217898,2571.1,2571.0,0.001]
[1751987326008,25.5217898,2571.1,2571.0,0.001]
[1751987329819,25.5217898,2571.1,2571.0,1e-08]
[1751987330042,26.2351898,2571.1,2571.0,1e-08]
[1751987330538,28.55887642,2571.1,2571.0,1e-08]
[1751987330733,26.2351898,2571.1,2571.0,1e-08]
[1751987333345,28.557204,2571.1,2571.0,1e-08]
[1751987333716,28.55689435,2571.1,2571.0,1e-08]
[1751987333912,28.0068808,2571.1,2571.0,1e-08]
[1751987334142,29.5028808,2571.1,2571.0,1e-08]
[1751987334717,17.0147898,2571.1,2571.0,1e-08]
[1751987334942,15.61378586,2571.1,2571.0,1e-08]
[1751987335121,25.61378586,2571.1,2571.0,1e-08]
[1751987335843,19.58178586,2571.1,2571.0,1e-08]
[1751987336221,21.61278586,2571.1,2571.0,1e-08]
[1751987338515,30.7230225,2571.1,2571.0,1e-08]
[1751987339013,30.8864225,2571.1,2571.0,1e-08]
[1751987339642,28.5647315,2571.1,2571.0,1e-08]
[1751987340444,30.8864225,2571.1,2571.0,1e-08]
[1751987340749,36.59612525,2571.1,2571.0,1e-08]
[1751987341852,33.1147315,2571.1,2571.0,1e-08]
[1751987343054,25.5877315,2571.1,2571.0,1e-08]
[1751987343246,35.43536665,2571.1,2571.0,1e-08]
[1751987343446,33.1137315,2571.1,2571.0,1e-08]
[1751987343647,37.0037315,2571.1,2571.0,1e-08]
[1751987344937,38.77580258,2571.1,2571.0,1e-08]
[1751987345665,31.24980258,2571.1,2571.0,1e-08]
[1751987345875,38.77480258,2571.1,2571.0,1e-08]
[1751987346069,37.0027315,2571.1,2571.0,1e-08]
[1751987346237,40.48412525,2571.1,2571.0,1e-08]
[1751987346637,44.48412525,2571.1,2571.0,1e-08]